fUSD/lending_fUSD_20240327
["ID","MTS","AMOUNT","RATE_DAILY","PERIOD"]
[320794055,1711560732181,-151.0,0.000529,120]
[320794056,1711560732204,-151.0,0.000529,120]
[320794057,1711560732227,-151.0,0.000529,120]
[320794058,1711560732250,-151.0,0.000529,30]
[320794059,1711560732273,-265.755102,0.000529,120]
[320794060,1711560732295,-151.0,0.000529,120]
[320794061,1711560732320,-151.0,0.000529,120]
[320794062,1711560732343,-455.76636,0.000529,120]
[320794063,1711560732366,-151.0,0.000529,120]
[320794064,1711560732390,-455.76636,0.000529,120]
[320794065,1711560732414,-151.0,0.000529,120]
[320794066,1711560732438,-151.0,0.000529,120]
[320794067,1711560732462,-302.296389,0.000529,120]
[320794068,1711560732485,-302.296389,0.000529,120]
[320794069,1711560732511,-151.0,0.000529,120]
[320794070,1711560732535,-151.0,0.000529,30]
[320794071,1711560732560,-151.0,0.000529,30]
[320794072,1711560732585,-161.39,0.00052904,30]
[320794073,1711560732610,-161.39,0.00052904,30]
[320794074,1711560732635,-161.39,0.00052904,30]
[320794075,1711560732660,-409.09,0.00052932,30]
[320794076,1711560732684,-924.01,0.00052932,30]
[320794077,1711560732707,-152.6744574,0.0005297,55]
[320794078,1711560732731,-150.0,0.00052986,30]
[320794079,1711560732754,-150.0,0.00052986,30]
[320794080,1711560732776,-150.0,0.00052986,30]
[320794081,1711560732799,-150.0,0.00052986,30]
[320794082,1711560732822,-150.0,0.00052986,30]
[320794083,1711560732845,-150.0,0.00052992,30]
[320794084,1711560732867,-10000.0,0.00053,120]
[320794085,1711560732891,-2000.0,0.00053,120]
[320794086,1711560732914,-20000.0,0.00053,120]
[320794087,1711560732936,-20000.0,0.00053,120]
[320794088,1711560732959,-6804.99596524,0.00053,120]
[320794089,1711560732981,-503.82255928,0.00053,120]
[320794090,1711560733003,-414.06,0.00053,30]
[320794091,1711560733026,-318.86786748,0.00053009,60]
[320794092,1711560733049,-159.796,0.00053048,120]
[320794093,1711560733072,-159.797,0.00053048,120]
[320794094,1711560733095,-159.797,0.00053048,120]
[320794095,1711560733118,-159.797,0.00053048,120]
[320794096,1711560733140,-159.797,0.00053048,120]
[320794097,1711560733163,-1889.161,0.00053048,120]
[320794098,1711560733185,-1889.162,0.00053048,120]
[320794099,1711560733208,-1889.161,0.00053048,120]
[320794100,1711560733230,-1889.162,0.00053048,120]
[320794101,1711560733252,-1889.161,0.00053048,120]
[320794102,1711560733275,-151.69962172,0.00053049,60]
[320794103,1711560733301,-11555.90278948,0.0005306,30]
[320794104,1711560733324,-150.0,0.00053068,30]
[320794105,1711560733347,-415.7,0.00053068,30]
[320794106,1711560733369,-150.0,0.00053068,30]
[320794107,1711560733395,-150.0,0.00053068,30]
[320794108,1711560733418,-226.43,0.00053068,30]
[320794109,1711560733442,-161.39,0.00053068,30]
[320794110,1711560733465,-150.0,0.00053068,30]
[320794111,1711560733488,-150.0,0.00053068,30]
[320794112,1711560733512,-150.0,0.00053068,30]
[320794113,1711560733535,-415.7,0.00053068,30]
[320794114,1711560733560,-150.0,0.00053068,30]
[320794115,1711560733583,-415.7,0.00053068,30]
[320794116,1711560733606,-150.0,0.00053068,30]
[320794117,1711560733628,-150.0,0.00053068,30]
[320794118,1711560733652,-161.39,0.00053068,30]
[320794119,1711560733675,-150.0,0.00053068,30]
[320794120,1711560733698,-415.7,0.00053068,30]
[320794121,1711560733720,-150.0,0.00053068,30]
[320794122,1711560733742,-161.39,0.00053068,30]
[320794123,1711560733764,-150.0,0.00053068,30]
[320794124,1711560733788,-415.7,0.00053068,30]
[320794125,1711560733811,-150.0,0.00053068,30]
[320794126,1711560733834,-150.0,0.00053068,30]
[320794127,1711560733857,-150.0,0.00053068,30]
[320794128,1711560733886,-161.39,0.00053068,30]
[320794129,1711560733909,-415.7,0.00053068,30]
[320794130,1711560733932,-150.0,0.00053068,30]
[320794131,1711560733955,-150.0,0.00053068,30]
[320794132,1711560733977,-150.0,0.00053068,30]
[320794133,1711560734001,-161.39,0.00053068,30]
[320794134,1711560734025,-150.0,0.00053068,30]
[320794135,1711560734050,-150.0,0.00053068,30]
[320794136,1711560734074,-415.7,0.00053068,30]
[320794137,1711560734097,-161.39,0.00053068,30]
[320794138,1711560734120,-150.0,0.00053068,30]
[320794139,1711560734143,-415.7,0.00053068,30]
[320794140,1711560734166,-150.0,0.00053068,30]
[320794141,1711560734189,-150.0,0.00053068,30]
[320794142,1711560734211,-161.39,0.00053068,30]
[320794143,1711560734234,-415.7,0.00053068,30]
[320794144,1711560734258,-161.39,0.00053068,30]
[320794145,1711560734284,-150.0,0.00053068,30]
[320794146,1711560734308,-415.7,0.00053068,30]
[320794147,1711560734332,-150.0,0.00053068,30]
[320794148,1711560734357,-161.39,0.00053068,30]
[320794149,1711560734380,-522.0,0.00053123,120]
[320794150,1711560734403,-537.0,0.00053123,120]
[320794151,1711560734426,-558.0,0.00053123,120]
[320794152,1711560734612,-318.86786748,0.00053147,60]
[320794153,1711560734637,-500.0,0.00053149,90]
[320794154,1711560734663,-500.0,0.00053149,90]
[320794155,1711560734688,-610.5,0.0005315,60]
[320794156,1711560734712,-1513.74,0.0005315,120]
[320794157,1711560734737,-3448.32,0.0005315,120]
[320794158,1711560734761,-415.51,0.00053151,30]
[320794159,1711560734785,-151.69962172,0.00053186,60]
[320794160,1711560734809,-150.50617537,0.0005322,60]
[320794161,1711560734834,-152.92274924,0.00053238,60]
[320794162,1711560734857,-152.6744574,0.00053271,57]
[320794163,1711560734881,-2261.6,0.00053285,117]
[320794164,1711560734906,-151.69962172,0.00053309,60]
[320794165,1711560734930,-522.0,0.00053397,120]
[320794166,1711560734953,-537.0,0.00053397,120]
[320794167,1711560734978,-558.0,0.00053397,120]
[320794168,1711560735002,-2000.0,0.00053424,120]
[320794169,1711560735025,-2000.0,0.00053424,120]
[320794170,1711560735048,-2000.0,0.00053424,120]
[320794171,1711560735075,-2000.0,0.00053424,120]
[320794172,1711560735101,-2000.0,0.00053424,120]
[320794173,1711560735123,-2000.0,0.00053424,120]
[320794174,1711560735147,-2000.0,0.00053424,120]
[320794175,1711560735175,-2000.0,0.00053424,120]
[320794176,1711560735198,-2000.0,0.00053424,120]
[320794177,1711560735222,-2000.0,0.00053424,120]
[320794178,1711560735247,-2000.0,0.00053424,120]
[320794179,1711560735272,-2000.0,0.00053424,120]
[320794180,1711560735296,-2000.0,0.00053424,120]
[320794181,1711560735325,-1267.93817187,0.00053424,120]
[320794182,1711560735351,-1000.0,0.00053424,60]
[320794183,1711560735375,-1513.74,0.00053424,120]
[320794184,1711560735400,-3448.32,0.00053424,120]
[320794185,1711560735423,-150.0,0.00053424,30]
[320794186,1711560735448,-409.3,0.00053425,30]
[320794187,1711560735472,-409.3,0.00053425,30]
[320794188,1711560735498,-409.3,0.00053425,30]
[320794189,1711560735527,-481.06,0.00053426,120]
[320794190,1711560735555,-161.997484,0.00053427,30]
[320794191,1711560735581,-161.997483,0.00053427,30]
[320794192,1711560735607,-170.48993,0.00053427,30]
[320794193,1711560735632,-5978.99850768,0.00053459,30]
[320794194,1711560735657,-158.63652466,0.00053475,60]
[320794195,1711560735683,-318.86786748,0.00053498,60]
[320794196,1711560735707,-2000.0,0.000535,120]
[320794197,1711560735731,-150.50617537,0.00053509,60]
[320794198,1711560735754,-318.86786748,0.00053571,60]
[320794199,1711560735778,-152.6744574,0.00053572,58]
[320794200,1711560735803,-924.51,0.00053589,30]
[320794201,1711560735827,-924.51,0.00053589,30]
[320794202,1711560735850,-924.51,0.00053589,30]
[320794203,1711560735873,-924.51,0.00053589,30]
[320794204,1711560735896,-160.35,0.00053589,30]
[320794205,1711560735919,-160.06,0.00053589,30]
[320794206,1711560735944,-2155.64516919,0.00053608,120]
[320794207,1711560735968,-152.92274924,0.00053639,60]
[320794208,1711560735991,-150.50617537,0.00053643,60]
[320794209,1711560736016,-157.20873733,0.00053663,60]
[320794210,1711560736040,-522.0,0.00053671,120]
[320794211,1711560736064,-537.0,0.00053671,120]
[320794212,1711560736087,-558.0,0.00053671,120]
[320794213,1711560736109,-318.86786748,0.0005368,60]
[320794214,1711560736132,-500.0,0.00053697,90]
[320794215,1711560736154,-500.0,0.00053697,90]
[320794216,1711560736177,-610.5,0.00053698,60]
[320794217,1711560736200,-1513.74,0.00053698,120]
[320794218,1711560736224,-2319.97,0.00053698,120]
[320794219,1711560736248,-3448.32,0.00053698,120]
[320794220,1711560736271,-161.39,0.00053699,30]
[320794221,1711560736294,-413.61,0.00053699,30]
[320794222,1711560736318,-150.0,0.00053699,30]
[320794223,1711560736341,-150.0,0.00053699,30]
[320794224,1711560736365,-150.0,0.00053699,30]
[320794225,1711560736392,-156.38,0.00053699,30]
[320794226,1711560736415,-318.86786748,0.00053706,60]
[320794227,1711560736440,-151.69962172,0.00053726,60]
[320794228,1711560736464,-152.92274924,0.00053749,60]
[320794229,1711560736488,-386.60453288,0.0005375,30]
[320794230,1711560736516,-151.69962172,0.00053765,60]
[320794231,1711560736543,-150.0,0.00053808,30]
[320794232,1711560736572,-150.0,0.00053808,30]
[320794233,1711560736599,-161.39,0.00053808,30]
[320794234,1711560736623,-150.0,0.00053808,30]
[320794235,1711560736647,-300.0,0.00053808,30]
[320794236,1711560736671,-150.0,0.00053808,30]
[320794237,1711560736696,-154.93767154,0.00053844,60]
[320794238,1711560736721,-152.92274924,0.00053849,60]
[320794239,1711560736747,-152.6744574,0.00053874,59]
[320794240,1711560736773,-483.35636006,0.0005388,30]
[320794241,1711560736797,-151.0,0.00053885,120]
[320794242,1711560736822,-151.0,0.00053885,120]
[320794243,1711560736845,-151.0,0.00053885,120]
[320794244,1711560736868,-151.0,0.00053885,120]
[320794245,1711560736892,-151.0,0.00053885,120]
[320794246,1711560736916,-151.0,0.00053885,120]
[320794247,1711560736940,-151.0,0.00053885,120]
[320794248,1711560736963,-151.0,0.00053885,120]
[320794249,1711560736988,-204.288628,0.00053885,120]
[320794250,1711560737014,-204.288628,0.00053885,120]
[320794251,1711560737038,-151.0,0.00053885,120]
[320794252,1711560737067,-191.520487,0.00053885,120]
[320794253,1711560737096,-191.520487,0.00053885,120]
[320794254,1711560737120,-250.635261,0.00053885,120]
[320794255,1711560737144,-240.242065,0.00053885,120]
[320794256,1711560737332,-250.635261,0.00053885,120]
[320794257,1711560737358,-240.242065,0.00053885,120]
[320794258,1711560737384,-151.576563,0.00053885,120]
[320794259,1711560737409,-151.576563,0.00053885,120]
[320794260,1711560737434,-151.0,0.00053885,120]
[320794261,1711560737458,-342.284432,0.00053885,120]
[320794262,1711560737483,-342.284432,0.00053885,120]
[320794263,1711560737508,-151.0,0.00053885,60]
[320794264,1711560737534,-151.0,0.00053885,60]
[320794265,1711560737563,-151.0,0.00053885,120]
[320794266,1711560737587,-151.0,0.00053885,120]
[320794267,1711560737613,-151.0,0.00053885,120]
[320794268,1711560737636,-151.0,0.00053885,120]
[320794269,1711560737662,-151.0,0.00053885,120]
[320794270,1711560737687,-151.0,0.00053885,120]
[320794271,1711560737712,-151.0,0.00053885,120]
[320794272,1711560737737,-151.0,0.00053885,120]
[320794273,1711560737762,-151.0,0.00053885,120]
[320794274,1711560737786,-151.0,0.00053885,120]
[320794275,1711560737810,-151.0,0.00053885,120]
[320794276,1711560737833,-151.0,0.00053885,120]
[320794277,1711560737856,-294.69014,0.00053885,120]
[320794278,1711560737878,-151.0,0.00053885,30]
[320794279,1711560737901,-151.0,0.00053885,120]
[320794280,1711560737924,-151.0,0.00053885,120]
[320794281,1711560737949,-455.76636,0.00053885,120]
[320794282,1711560737972,-193.636468,0.00053885,120]
[320794283,1711560737996,-455.76636,0.00053885,120]
[320794284,1711560738020,-254.428747,0.00053885,120]
[320794285,1711560738043,-151.0,0.00053885,120]
[320794286,1711560738067,-302.296389,0.00053885,120]
[320794287,1711560738093,-302.296389,0.00053885,120]
[320794288,1711560738116,-151.0,0.00053885,30]
[320794289,1711560738140,-151.0,0.00053885,30]
[320794290,1711560738163,-151.0,0.00053885,120]
[320794291,1711560738186,-151.0,0.00053885,120]
[320794292,1711560738211,-151.0,0.00053885,120]
[320794293,1711560738234,-168.606571,0.00053885,120]
[320794294,1711560738261,-427200.45055556,0.00053885,30]
[320794295,1711560738285,-190.67491442,0.00053888,30]
[320794296,1711560738309,-150.0,0.0005389,30]
[320794297,1711560738331,-150.0,0.0005389,30]
[320794298,1711560738355,-150.0,0.0005389,30]
[320794299,1711560738379,-150.0,0.0005389,30]
[320794300,1711560738402,-150.0,0.0005389,30]
[320794301,1711560738428,-150.0,0.0005389,30]
[320794302,1711560738453,-150.0,0.0005389,30]
[320794303,1711560738477,-150.0,0.0005389,30]
[320794304,1711560738502,-150.0,0.0005389,30]
[320794305,1711560738528,-150.0,0.0005389,30]
[320794306,1711560738553,-150.0,0.0005389,30]
[320794307,1711560738578,-110185.25305275,0.00053895,30]
[320794308,1711560759428,-155.0,0.00047405,120]
[320794309,1711560759452,-1000.0,0.0004771,120]
[320794310,1711560759476,-642.22784479,0.00049997,120]
[320794311,1711560759500,-162.95493213,0.00049997,120]
[320794312,1711560759526,-1000.0,0.00049999,30]
[320794313,1711560759548,-314.79011526,0.00049999,120]
[320794314,1711560759573,-439.85884348,0.00049999,120]
[320794315,1711560759596,-500.0,0.00049999,120]
[320794316,1711560759620,-609.1380713,0.00049999,120]
[320794317,1711560759643,-5000.0,0.0005,30]
[320794318,1711560759666,-156.22907181,0.00050931,60]
[320794319,1711560759690,-151.94951932,0.00051082,60]
[320794320,1711560759714,-169.98179549,0.00051235,60]
[320794321,1711560759738,-4848.10637665,0.00051884,120]
[320794322,1711560759761,-253.03202787,0.00052,120]
[320794323,1711560759784,-5777.01161238,0.00052,120]
[320794324,1711560759809,-4848.10637665,0.00052037,120]
[320794325,1711560759835,-4848.10637665,0.00052189,120]
[320794326,1711560759859,-4848.10637665,0.00052342,120]
[320794327,1711560759882,-4848.10637665,0.00052495,120]
[320794328,1711560760118,-544.0,0.00052603,120]
[320794329,1711560760143,-560.0,0.00052603,120]
[320794330,1711560760166,-538.0,0.00052603,120]
[320794331,1711560760190,-4848.10637665,0.00052647,120]
[320794332,1711560760214,-4848.10637665,0.000528,120]
[320794333,1711560760237,-544.0,0.00052876,120]
[320794334,1711560760259,-561.0,0.00052876,120]
[320794335,1711560760282,-539.0,0.00052876,120]
[320794336,1711560760306,-289.85,0.000529,30]
[320794337,1711560760331,-544.0,0.0005315,120]
[320794338,1711560760356,-573.36659052,0.00053324,51]
[320794339,1711560760380,-520.0,0.00053424,120]
[320794340,1711560760404,-289.85,0.000535,30]
[320794341,1711560760428,-573.36659052,0.0005353,51]
[320794342,1711560760454,-520.0,0.00053698,120]
[320794343,1711560760479,-573.36659052,0.00053735,52]
[320794344,1711560760503,-152.05442181,0.00053747,60]
[320794345,1711560760531,-151.0,0.00053885,120]
[320794346,1711560760556,-151.0,0.00053885,120]
[320794347,1711560760582,-317015.19750281,0.00053895,30]
[320794348,1711560760607,-150.0,0.00053895,60]
[320794349,1711560760635,-221.20509768,0.00053895,60]
[320794350,1711560760659,-152.05442183,0.00053898,60]
[320794351,1711560760683,-52332.11733938,0.000539,120]
[320794352,1711560760708,-72230.34047655,0.00053902,30]
[320794353,1711560760733,-2387.79113854,0.00053905,30]
[320794354,1711560760759,-43211.59343509,0.00053908,30]
[320794355,1711560760785,-427200.45055556,0.00053911,30]
[320794356,1711560760810,-151.0,0.00053912,120]
[320794357,1711560760836,-151.0,0.00053912,120]
[320794358,1711560760861,-151.0,0.00053912,120]
[320794359,1711560760886,-204.288628,0.00053912,120]
[320794360,1711560760910,-204.288628,0.00053912,120]
[320794361,1711560760938,-151.0,0.00053912,120]
[320794362,1711560760965,-191.520487,0.00053912,120]
[320794363,1711560760990,-191.520487,0.00053912,120]
[320794364,1711560761014,-250.635261,0.00053912,120]
[320794365,1711560761038,-240.242065,0.00053912,120]
[320794366,1711560761063,-250.635261,0.00053912,120]
[320794367,1711560761089,-240.242065,0.00053912,120]
[320794368,1711560761114,-151.576563,0.00053912,120]
[320794369,1711560761138,-151.576563,0.00053912,120]
[320794370,1711560761161,-151.0,0.00053912,120]
[320794371,1711560761185,-342.284432,0.00053912,120]
[320794372,1711560761210,-342.284432,0.00053912,120]
[320794373,1711560761234,-151.0,0.00053912,60]
[320794374,1711560761259,-157.0,0.00053912,60]
[320794375,1711560761283,-151.0,0.00053912,120]
[320794376,1711560761307,-151.0,0.00053912,120]
[320794377,1711560761333,-151.0,0.00053912,120]
[320794378,1711560761358,-228.445746,0.00053912,120]
[320794379,1711560761383,-151.0,0.00053912,120]
[320794380,1711560761409,-151.0,0.00053912,120]
[320794381,1711560761434,-151.0,0.00053912,120]
[320794382,1711560761458,-151.0,0.00053912,120]
[320794383,1711560761481,-151.0,0.00053912,120]
[320794384,1711560761505,-165.252325,0.00053912,120]
[320794385,1711560761533,-151.0,0.00053912,120]
[320794386,1711560761558,-151.0,0.00053912,30]
[320794387,1711560761584,-151.0,0.00053912,120]
[320794388,1711560761612,-151.0,0.00053912,120]
[320794389,1711560761637,-455.76636,0.00053912,120]
[320794390,1711560761662,-455.76636,0.00053912,120]
[320794391,1711560761687,-302.296389,0.00053912,120]
[320794392,1711560761711,-302.296389,0.00053912,120]
[320794393,1711560761735,-151.0,0.00053912,30]
[320794394,1711560761760,-151.0,0.00053912,30]
[320794395,1711560761783,-151.0,0.00053912,120]
[320794396,1711560761807,-151.0,0.00053912,120]
[320794397,1711560761832,-151.0,0.00053912,120]
[320794398,1711560761856,-151.0,0.00053912,120]
[320794399,1711560761880,-173.78457562,0.00053923,30]
[320794400,1711560761919,-72230.34047655,0.00053924,30]
[320794401,1711560761946,-176.96227464,0.00053929,30]
[320794402,1711560761971,-490.18421455,0.00053935,30]
[320794403,1711560761997,-18485.28708311,0.00053937,30]
[320794404,1711560762023,-483.35636006,0.00053939,30]
[320794405,1711560762049,-573.36659052,0.00053941,52]
[320794406,1711560762077,-18485.28708311,0.00053945,30]
[320794407,1711560762102,-490.18421455,0.00053947,30]
[320794408,1711560762128,-427200.45055556,0.00053948,30]
[320794409,1711560762154,-43211.59343509,0.0005395,30]
[320794410,1711560762178,-172.84260848,0.00053953,120]
[320794411,1711560762203,-172.84260848,0.00053953,120]
[320794412,1711560762229,-172.84260848,0.00053953,120]
[320794413,1711560762254,-172.84260848,0.00053953,120]
[320794414,1711560762278,-172.84260848,0.00053953,120]
[320794415,1711560762303,-172.84260848,0.00053953,120]
[320794416,1711560762328,-172.84260848,0.00053953,120]
[320794417,1711560762353,-172.84260848,0.00053953,120]
[320794418,1711560762383,-172.84260848,0.00053953,120]
[320794419,1711560762407,-172.84260848,0.00053953,120]
[320794420,1711560762432,-172.84260848,0.00053953,120]
[320794421,1711560762457,-172.84260848,0.00053953,120]
[320794422,1711560762482,-172.84260848,0.00053953,120]
[320794423,1711560762506,-172.84260848,0.00053953,120]
[320794424,1711560762537,-172.84260848,0.00053953,120]
[320794425,1711560762562,-172.84260848,0.00053953,120]
[320794426,1711560762588,-172.84260848,0.00053953,120]
[320794427,1711560762614,-172.84260848,0.00053953,120]
[320794428,1711560762643,-172.84260848,0.00053953,120]
[320794429,1711560762670,-173.34,0.00053953,120]
[320794430,1711560762697,-153.9654974,0.00053953,120]
[320794431,1711560762989,-153.9654974,0.00053953,120]
[320794432,1711560763015,-153.9654974,0.00053953,120]
[320794433,1711560763040,-153.9654974,0.00053953,120]
[320794434,1711560763064,-153.9654974,0.00053953,120]
[320794435,1711560763088,-153.9654974,0.00053953,120]
[320794436,1711560763112,-153.9654974,0.00053953,120]
[320794437,1711560763136,-153.9654974,0.00053953,120]
[320794438,1711560763160,-153.9654974,0.00053953,120]
[320794439,1711560763187,-153.9654974,0.00053953,120]
[320794440,1711560763212,-153.9654974,0.00053953,120]
[320794441,1711560763236,-153.9654974,0.00053953,120]
[320794442,1711560763261,-153.9654974,0.00053953,120]
[320794443,1711560763286,-153.9654974,0.00053953,120]
[320794444,1711560763312,-153.9654974,0.00053953,120]
[320794445,1711560763339,-154.46,0.00053953,120]
[320794446,1711560763366,-155.53454991,0.00053953,120]
[320794447,1711560763392,-155.53454991,0.00053953,120]
[320794448,1711560763418,-156.03,0.00053953,120]
[320794449,1711560763444,-154.58429963,0.00053953,120]
[320794450,1711560763469,-154.58429963,0.00053953,120]
[320794451,1711560763495,-154.58429963,0.00053953,120]
[320794452,1711560763522,-154.58429963,0.00053953,120]
[320794453,1711560763547,-154.58429963,0.00053953,120]
[320794454,1711560763572,-154.58429963,0.00053953,120]
[320794455,1711560763599,-154.58429963,0.00053953,120]
[320794456,1711560763624,-154.58429963,0.00053953,120]
[320794457,1711560763648,-154.58429963,0.00053953,120]
[320794458,1711560763673,-154.58429963,0.00053953,120]
[320794459,1711560763698,-154.58429963,0.00053953,120]
[320794460,1711560763723,-154.58429963,0.00053953,120]
[320794461,1711560763747,-154.58429963,0.00053953,120]
[320794462,1711560763771,-154.58429963,0.00053953,120]
[320794463,1711560763795,-154.58429963,0.00053953,120]
[320794464,1711560763819,-155.08,0.00053953,120]
[320794465,1711560763844,-190.67491442,0.00053961,30]
[320794466,1711560763873,-18485.28708311,0.00053962,30]
[320794467,1711560763897,-490.18421455,0.00053966,30]
[320794468,1711560763921,-150.0,0.00053968,60]
[320794469,1711560763945,-160.89804975,0.00053968,60]
[320794470,1711560763969,-2387.79113854,0.00053972,30]
[320794471,1711560763994,-3448.32,0.00053972,120]
[320794472,1711560764019,-520.0,0.00053972,120]
[320794473,1711560764043,-176.96227464,0.00053974,30]
[320794474,1711560764067,-173.78457562,0.00053974,30]
[320794475,1711560764092,-490.18421455,0.00053977,30]
[320794476,1711560764117,-79328.22056683,0.0005398,120]
[320794477,1711560764141,-151.0,0.0005398,120]
[320794478,1711560764165,-2387.79113854,0.00053982,30]
[320794479,1711560764188,-176.96227464,0.00053984,30]
[320794480,1711560764214,-43211.59343509,0.00053986,30]
[320794481,1711560764238,-204.288628,0.00053986,120]
[320794482,1711560764263,-204.288628,0.00053986,120]
[320794483,1711560764287,-151.0,0.00053986,120]
[320794484,1711560764313,-191.520487,0.00053986,120]
[320794485,1711560764342,-191.520487,0.00053986,120]
[320794486,1711560764367,-250.635261,0.00053986,120]
[320794487,1711560764393,-240.242065,0.00053986,120]
[320794488,1711560764419,-250.635261,0.00053986,120]
[320794489,1711560764444,-240.242065,0.00053986,120]
[320794490,1711560764468,-151.576563,0.00053986,120]
[320794491,1711560764493,-151.576563,0.00053986,120]
[320794492,1711560764520,-151.0,0.00053986,120]
[320794493,1711560764544,-342.284432,0.00053986,120]
[320794494,1711560764569,-342.284432,0.00053986,120]
[320794495,1711560764594,-151.0,0.00053986,60]
[320794496,1711560764619,-151.0,0.00053986,120]
[320794497,1711560764643,-151.0,0.00053986,120]
[320794498,1711560764668,-151.0,0.00053986,120]
[320794499,1711560764692,-216.46412,0.00053986,120]
[320794500,1711560764718,-152.147032,0.00053986,120]
[320794501,1711560764746,-151.0,0.00053986,120]
[320794502,1711560764771,-151.0,0.00053986,120]
[320794503,1711560764795,-264.327424,0.00053986,30]
[320794504,1711560764821,-151.0,0.00053986,120]
[320794505,1711560764847,-151.0,0.00053986,120]
[320794506,1711560764872,-455.76636,0.00053986,120]
[320794507,1711560764896,-455.76636,0.00053986,120]
[320794508,1711560764921,-302.296389,0.00053986,120]
[320794509,1711560764945,-302.296389,0.00053986,120]
[320794510,1711560764971,-151.0,0.00053986,30]
[320794511,1711560764996,-151.0,0.00053986,30]
[320794512,1711560765020,-151.0,0.00053986,120]
[320794513,1711560765044,-151.0,0.00053986,120]
[320794514,1711560765069,-173.78457562,0.00053989,30]
[320794515,1711560765094,-2387.79113854,0.00053995,30]
[320794516,1711560765120,-483.35636006,0.00053996,30]
[320794517,1711560765144,-176.96227464,0.00053999,30]
[320794518,1711560765168,-173.78457562,0.00053999,30]
[320794519,1711560765192,-1474.50694002,0.00054,120]
[320794520,1711560765216,-2000.0,0.00054,120]
[320794521,1711560765240,-155.0,0.00054,30]
[320794522,1711560765265,-5000.0,0.00054,120]
[320794523,1711560765290,-17079.167,0.00054,120]
[320794524,1711560765315,-150.0,0.00054,30]
[320794525,1711560765341,-151.0,0.00054007,120]
[320794526,1711560765367,-151.0,0.00054007,120]
[320794527,1711560765398,-18485.28708311,0.00054007,30]
[320794528,1711560765423,-173.78457562,0.00054011,30]
[320794529,1711560765448,-2387.79113854,0.00054015,30]
[320794530,1711560765478,-483.35636006,0.00054017,30]
[320794531,1711560765507,-43211.59343509,0.00054023,30]
[320794532,1711560765537,-483.35636006,0.00054024,30]
[320794533,1711560765563,-166.35683252,0.00054026,60]
[320794534,1711560765589,-190.67491442,0.00054031,30]
[320794535,1711560765817,-2387.79113854,0.00054036,30]
[320794536,1711560765845,-43211.59343509,0.00054039,30]
[320794537,1711560765874,-128199.77548423,0.00054043,30]
[320794538,1711560917368,1000.0,0.00039734,30]
[320794539,1711560933705,159.674193,0.00039734,30]
[320794540,1711560936114,708.54130579,0.00039734,30]
[320794541,1711560940464,1052.0,0.00039734,30]
[320794542,1711560941701,3033.0,0.00039734,120]
[320794543,1711561024933,156.416567,0.00039734,30]
[320794544,1711561168801,597.3078742,0.00039734,60]
[320794545,1711561202049,426.06227704,0.00039734,30]
[320794546,1711561357860,1048.0,0.00039799,30]
[320794547,1711561442597,152.20543244,0.00039799,32]
[320794548,1711561444727,152.20543244,0.00039799,32]
[320794549,1711561703370,896.35313521,0.00039748,30]
[320794556,1711561774684,-155.0,0.00023885,2]
[320794557,1711561774706,-644.17906747,0.00023886,2]
[320794558,1711561774728,-161.53346799,0.000239,2]
[320794559,1711561774750,-223.94252704,0.00024,2]
[320794574,1711561831900,-155.0,0.00034738,4]